Workbook

Sheet definición
A1: e= | B1: 0.3 | C1: t^ | D1: 3 | E1: + | F1: 1 | H1: punto arranque | I1: 1 | J1: punto máximo | K1: 2 | L1: 36 | N1: punto final | O1: =K1-(L1/100) -> 1.64 | P1: ángulo | Q1: pendiente | R1: vel media
L2: =I2-I1 -> -1 | O2: =B1*O1^D1+F1 -> 2.3232832 | P2: secante | Q2: secante | R2: =I1&" - "&O1 -> 1 - 1,64
H3: =B1*I1^D1+F1 -> 1.3
P6: =ATAN(Q6)*180/PI() -> 57.97658208 | Q6: =(($O$2-$H$3)/($O$1-$I$1)) -> 1.59888 | R6: =(($O$2-$H$3)/($O$1-$I$1)) -> 1.59888
A8: 0 | B8: =$B$1*A8^$D$1+$F$1 -> 1 | C8: =IF($O$1=$I$1,$D$1*$B$1*$I$1^($D$1-1)*(A8-$I$1)+$H$3,(($O$2-$H$3)/($O$1-$I$1))*(A8-$I$1)+$H$3) -> -0.29888
A9: 0.1 | B9: =$B$1*A9^$D$1+$F$1 -> 1.0003 | C9: =IF($O$1=$I$1,$D$1*$B$1*$I$1^($D$1-1)*(A9-$I$1)+$H$3,(($O$2-$H$3)/($O$1-$I$1))*(A9-$I$1)+$H$3) -> -0.138992 | P9: =ATAN(Q9)*180/PI() -> 41.9872125 | Q9: =D1*I1^(D1-1)*B1 -> 0.9 | R9: =Q9 -> 0.9
A10: 0.2 | B10: 1.0024 | C10: 0.020896 | P10: ángulo | Q10: pendiente | R10: vel inst.
A11: 0.3 | B11: 1.0081 | C11: 0.180784 | P11: recta | Q11: recta | R11: en
A12: 0.4 | B12: 1.0192 | C12: 0.340672 | P12: tangente | Q12: tangente | R12: =I1 -> 1
A13: 0.5 | B13: 1.0375 | C13: 0.50056
A14: 0.6 | B14: 1.0648 | C14: 0.660448
A15: 0.7 | B15: 1.1029 | C15: 0.820336
A16: 0.8 | B16: 1.1536 | C16: 0.980224
A17: 0.9 | B17: 1.2187 | C17: 1.140112 | Q17: DERIVADA en
A18: 1 | B18: 1.3 | C18: 1.3 | Q18: t= | R18: =I1 -> 1
A19: 1.1 | B19: 1.3993 | C19: 1.459888
A20: 1.2 | B20: 1.5184 | C20: 1.619776
A21: 1.3 | B21: 1.6591 | C21: 1.779664
A22: 1.4 | B22: 1.8232 | C22: 1.939552
A23: 1.5 | B23: 2.0125 | C23: 2.09944
A24: 1.6 | B24: 2.2288 | C24: 2.259328
A25: 1.7 | B25: 2.4739 | C25: 2.419216
A26: 1.8 | B26: 2.7496 | C26: 2.579104
A27: 1.9 | B27: 3.0577 | C27: 2.738992
A28: 2 | B28: 3.4 | C28: 2.89888
A29: 2.1 | B29: 3.7783 | C29: 3.058768
A30: 2.2 | B30: 4.1944 | C30: 3.218656
A31: 2.3 | B31: 4.6501 | C31: 3.378544
A32: 2.4 | B32: 5.1472 | C32: 3.538432
A33: 2.5 | B33: 5.6875 | C33: 3.69832
A34: 2.6 | B34: 6.2728 | C34: 3.858208
A35: 2.7 | B35: 6.9049 | C35: 4.018096
A36: 2.8 | B36: 7.5856 | C36: 4.177984
A37: 2.9 | B37: 8.3167 | C37: 4.337872
A38: 3 | B38: 9.1 | C38: 4.49776
A39: 3.1 | B39: 9.9373 | C39: 4.657648
A40: 3.2 | B40: 10.8304 | C40: 4.817536
A41: 3.3 | B41: 11.7811 | C41: 4.977424
A42: 3.4 | B42: 12.7912 | C42: 5.137312
A43: 3.5 | B43: 13.8625 | C43: 5.2972
A44: 3.6 | B44: 14.9968 | C44: 5.457088
A45: 3.7 | B45: 16.1959 | C45: 5.616976
A46: 3.8 | B46: 17.4616 | C46: 5.776864
A47: 3.9 | B47: 18.7957 | C47: 5.936752
A48: 4 | B48: 20.2 | C48: 6.09664
A49: 4.1 | B49: 21.6763 | C49: 6.256528
A50: 4.2 | B50: 23.2264 | C50: 6.416416
A51: 4.3 | B51: 24.8521 | C51: 6.576304
A52: 4.4 | B52: 26.5552 | C52: 6.736192
A53: 4.5 | B53: 28.3375 | C53: 6.89608
A54: 4.6 | B54: 30.2008 | C54: 7.055968
A55: 4.7 | B55: 32.1469 | C55: 7.215856
A56: 4.8 | B56: 34.1776 | C56: 7.375744
A57: 4.9 | B57: 36.2947 | C57: 7.535632
A58: 5 | B58: 38.5 | C58: 7.69552
A59: 5.1 | B59: 40.7953 | C59: 7.855408
A60: 5.2 | B60: 43.1824 | C60: 8.015296
A61: 5.3 | B61: 45.6631 | C61: 8.175184
A62: 5.4 | B62: 48.2392 | C62: 8.335072
A63: 5.5 | B63: 50.9125 | C63: 8.49496
A64: 5.6 | B64: 53.6848 | C64: 8.654848
A65: 5.7 | B65: 56.5579 | C65: 8.814736
A66: 5.8 | B66: 59.5336 | C66: 8.974624
A67: 5.9 | B67: 62.6137 | C67: 9.134512
A68: 6 | B68: 65.8 | C68: 9.2944
A69: 6.1 | B69: 69.0943 | C69: 9.454288
A70: 6.2 | B70: 72.4984 | C70: 9.614176
A71: 6.3 | B71: 76.0141 | C71: 9.774064
A72: 6.4 | B72: 79.6432 | C72: 9.933952
A73: 6.5 | B73: =$B$1*A73^$D$1+$F$1 -> 83.3875 | C73: =IF($O$1=$I$1,$D$1*$B$1*$I$1^($D$1-1)*(A73-$I$1)+$H$3,(($O$2-$H$3)/($O$1-$I$1))*(A73-$I$1)+$H$3) -> 10.09384
A74: 6.6 | B74: =$B$1*A74^$D$1+$F$1 -> 87.2488 | C74: 10.253728
A75: 6.7 | B75: =$B$1*A75^$D$1+$F$1 -> 91.2289 | C75: 10.413616
A76: 6.8 | B76: =$B$1*A76^$D$1+$F$1 -> 95.3296 | C76: 10.573504
A77: 6.9 | B77: =$B$1*A77^$D$1+$F$1 -> 99.5527 | C77: 10.733392
A78: 7 | B78: =$B$1*A78^$D$1+$F$1 -> 103.9 | C78: 10.89328
A79: 7.1 | B79: 108.3733 | C79: 11.053168
A80: 7.2 | B80: 112.9744 | C80: 11.213056
A81: 7.3 | B81: 117.7051 | C81: 11.372944
A82: 7.4 | B82: 122.5672 | C82: 11.532832
A83: 7.5 | B83: 127.5625 | C83: 11.69272
A84: 7.6 | B84: 132.6928 | C84: 11.852608
A85: 7.7 | B85: 137.9599 | C85: 12.012496
A86: 7.8 | B86: 143.3656 | C86: 12.172384
A87: 7.9 | B87: 148.9117 | C87: 12.332272
A88: 8 | B88: 154.6 | C88: 12.49216
A89: 8.1 | B89: 160.4323 | C89: 12.652048
A90: 8.2 | B90: 166.4104 | C90: 12.811936
A91: 8.3 | B91: 172.5361 | C91: 12.971824
A92: 8.4 | B92: 178.8112 | C92: 13.131712
A93: 8.5 | B93: 185.2375 | C93: 13.2916
A94: 8.6 | B94: 191.8168 | C94: 13.451488

Sheet der_ monomio
A1: y= | B1: 1 | C1: x | D1: ^ | E1: 3 | G1: punto | H1: -10 | K1: ángulo | L1: pendiente
K2: =ATAN($E$1*$B$1*$K$4^($E$1-1))*180/PI() -> 78.84227607 | L2: =($E$1*$B$1*$K$4^($E$1-1)) -> 5.07
K3: PUNTO | L3: DERIVADA
K4: =H1+L6/10 -> -1.3 | L4: =L2 -> 5.07
A5: =$H$1 -> -10 | B5: =$B$1*A5^E$1 -> -1000 | C5: =($E$1*$B$1*$K$4^($E$1-1))*(A5-$K$4)+($B$1*$K$4^$E$1) -> -46.306
A6: =A5-$H$1/100 -> -9.9 | B6: =$B$1*A6^E$1 -> -970.299 | C6: -45.799 | L6: 87
A7: =A6-$H$1/100 -> -9.8 | B7: -941.192 | C7: -45.292
A8: -9.7 | B8: -912.673 | C8: -44.785
A9: -9.6 | B9: -884.736 | C9: -44.278
A10: -9.5 | B10: -857.375 | C10: -43.771
A11: -9.4 | B11: -830.584 | C11: -43.264
A12: -9.3 | B12: -804.357 | C12: -42.757
A13: -9.2 | B13: -778.688 | C13: -42.25
A14: -9.1 | B14: -753.571 | C14: -41.743
A15: -9 | B15: -729 | C15: -41.236
A16: -8.9 | B16: -704.969 | C16: -40.729
A17: -8.8 | B17: -681.472 | C17: -40.222
A18: -8.7 | B18: -658.503 | C18: -39.715
A19: -8.6 | B19: -636.056 | C19: -39.208
A20: -8.5 | B20: -614.125 | C20: -38.701
A21: -8.4 | B21: -592.704 | C21: -38.194
A22: -8.3 | B22: -571.787 | C22: -37.687
A23: -8.2 | B23: -551.368 | C23: -37.18
A24: -8.1 | B24: -531.441 | C24: -36.673
A25: -8 | B25: -512 | C25: -36.166
A26: -7.9 | B26: =$B$1*A26^E$1 -> -493.039 | C26: -35.659
A27: -7.8 | B27: -474.552 | C27: -35.152
A28: -7.7 | B28: -456.533 | C28: -34.645
A29: -7.6 | B29: -438.976 | C29: -34.138
A30: -7.5 | B30: -421.875 | C30: -33.631
A31: -7.4 | B31: -405.224 | C31: -33.124
A32: -7.3 | B32: -389.017 | C32: -32.617
A33: -7.2 | B33: -373.248 | C33: -32.11
A34: -7.1 | B34: -357.911 | C34: -31.603
A35: -7 | B35: -343 | C35: -31.096
A36: -6.9 | B36: -328.509 | C36: -30.589
A37: -6.8 | B37: -314.432 | C37: -30.082
A38: -6.7 | B38: -300.763 | C38: -29.575
A39: -6.6 | B39: -287.496 | C39: -29.068
A40: -6.5 | B40: -274.625 | C40: -28.561
A41: -6.4 | B41: -262.144 | C41: -28.054
A42: -6.3 | B42: -250.047 | C42: -27.547
A43: -6.2 | B43: -238.328 | C43: -27.04
A44: -6.1 | B44: -226.981 | C44: -26.533
A45: -6 | B45: -216 | C45: -26.026
A46: -5.9 | B46: -205.379 | C46: -25.519
A47: -5.8 | B47: -195.112 | C47: -25.012
A48: -5.7 | B48: -185.193 | C48: -24.505
A49: -5.6 | B49: -175.616 | C49: -23.998
A50: -5.5 | B50: -166.375 | C50: -23.491
A51: -5.4 | B51: -157.464 | C51: -22.984
A52: -5.3 | B52: -148.877 | C52: -22.477
A53: -5.2 | B53: -140.608 | C53: -21.97
A54: -5.1 | B54: -132.651 | C54: -21.463
A55: -5 | B55: -125 | C55: -20.956
A56: -4.9 | B56: -117.649 | C56: -20.449
A57: -4.8 | B57: -110.592 | C57: -19.942
A58: -4.7 | B58: -103.823 | C58: -19.435
A59: -4.6 | B59: -97.336 | C59: -18.928
A60: -4.5 | B60: -91.125 | C60: -18.421
A61: -4.4 | B61: -85.184 | C61: -17.914
A62: -4.3 | B62: -79.507 | C62: -17.407
A63: -4.2 | B63: -74.088 | C63: -16.9
A64: -4.1 | B64: -68.921 | C64: -16.393
A65: -4 | B65: -64 | C65: -15.886
A66: -3.9 | B66: -59.319 | C66: -15.379
A67: -3.8 | B67: -54.872 | C67: -14.872
A68: -3.7 | B68: -50.653 | C68: -14.365
A69: -3.6 | B69: -46.656 | C69: =($E$1*$B$1*$K$4^($E$1-1))*(A69-$K$4)+($B$1*$K$4^$E$1) -> -13.858
A70: -3.5 | B70: -42.875 | C70: -13.351
A71: =A70-$H$1/100 -> -3.4 | B71: -39.304 | C71: -12.844
A72: -3.3 | B72: -35.937 | C72: -12.337
A73: -3.2 | B73: -32.768 | C73: -11.83
A74: -3.1 | B74: -29.791 | C74: -11.323
A75: -3 | B75: -27 | C75: -10.816
A76: -2.9 | B76: -24.389 | C76: -10.309
A77: -2.8 | B77: -21.952 | C77: -9.802
A78: -2.7 | B78: -19.683 | C78: -9.295
A79: -2.6 | B79: -17.576 | C79: -8.788
A80: -2.5 | B80: -15.625 | C80: -8.281
A81: -2.4 | B81: -13.824 | C81: -7.774
A82: -2.3 | B82: -12.167 | C82: -7.267
A83: -2.2 | B83: -10.648 | C83: -6.76
A84: -2.1 | B84: -9.261 | C84: -6.253
A85: -2 | B85: -8 | C85: -5.746
A86: -1.9 | B86: -6.859 | C86: -5.239
A87: -1.8 | B87: -5.832 | C87: -4.732
A88: -1.7 | B88: -4.913 | C88: -4.225
A89: -1.6 | B89: -4.096 | C89: -3.718
A90: -1.5 | B90: =$B$1*A90^E$1 -> -3.375 | C90: -3.211
A91: -1.4 | B91: -2.744 | C91: -2.704
A92: -1.3 | B92: -2.197 | C92: -2.197
A93: -1.2 | B93: -1.728 | C93: -1.69
A94: -1.1 | B94: -1.331 | C94: -1.183
A95: -1 | B95: -1 | C95: -0.676
A96: -0.9 | B96: -0.729 | C96: -0.169
A97: -0.8 | B97: -0.512 | C97: 0.338
A98: -0.7 | B98: -0.343 | C98: 0.845
A99: -0.6 | B99: -0.216 | C99: 1.352
A100: -0.5 | B100: -0.125 | C100: 1.859
A101: -0.4 | B101: -0.064 | C101: 2.366
A102: -0.3 | B102: -0.027 | C102: 2.873
A103: -0.2 | B103: -0.008 | C103: 3.38
A104: -0.1 | B104: -0.001 | C104: 3.887
A105: -1.879052469e-14 | B105: -6.634630204e-42 | C105: 4.394
A106: 0.1 | B106: 0.001 | C106: 4.901
A107: 0.2 | B107: 0.008 | C107: 5.408
A108: 0.3 | B108: 0.027 | C108: 5.915
A109: 0.4 | B109: 0.064 | C109: 6.422
A110: 0.5 | B110: 0.125 | C110: 6.929
A111: 0.6 | B111: 0.216 | C111: 7.436
A112: 0.7 | B112: 0.343 | C112: 7.943
A113: 0.8 | B113: 0.512 | C113: 8.45
A114: 0.9 | B114: 0.729 | C114: 8.957
A115: 1 | B115: 1 | C115: 9.464
A116: 1.1 | B116: 1.331 | C116: 9.971
A117: 1.2 | B117: 1.728 | C117: 10.478
A118: 1.3 | B118: 2.197 | C118: 10.985
A119: 1.4 | B119: 2.744 | C119: 11.492
A120: 1.5 | B120: 3.375 | C120: 11.999
A121: 1.6 | B121: 4.096 | C121: 12.506
A122: 1.7 | B122: 4.913 | C122: 13.013
A123: 1.8 | B123: 5.832 | C123: 13.52
A124: 1.9 | B124: 6.859 | C124: 14.027
A125: 2 | B125: 8 | C125: 14.534
A126: 2.1 | B126: 9.261 | C126: 15.041
A127: 2.2 | B127: 10.648 | C127: 15.548
A128: 2.3 | B128: 12.167 | C128: 16.055
A129: 2.4 | B129: 13.824 | C129: 16.562
A130: 2.5 | B130: 15.625 | C130: 17.069
A131: 2.6 | B131: 17.576 | C131: 17.576
A132: 2.7 | B132: 19.683 | C132: 18.083
A133: 2.8 | B133: 21.952 | C133: =($E$1*$B$1*$K$4^($E$1-1))*(A133-$K$4)+($B$1*$K$4^$E$1) -> 18.59
A134: 2.9 | B134: 24.389 | C134: 19.097
A135: =A134-$H$1/100 -> 3 | B135: 27 | C135: 19.604
A136: 3.1 | B136: 29.791 | C136: 20.111
A137: 3.2 | B137: 32.768 | C137: 20.618
A138: 3.3 | B138: 35.937 | C138: 21.125
A139: 3.4 | B139: 39.304 | C139: 21.632
A140: 3.5 | B140: 42.875 | C140: 22.139
A141: 3.6 | B141: 46.656 | C141: 22.646
A142: 3.7 | B142: 50.653 | C142: 23.153
A143: 3.8 | B143: 54.872 | C143: 23.66
A144: 3.9 | B144: 59.319 | C144: 24.167
A145: 4 | B145: 64 | C145: 24.674
A146: 4.1 | B146: 68.921 | C146: 25.181
A147: 4.2 | B147: 74.088 | C147: 25.688
A148: 4.3 | B148: 79.507 | C148: 26.195
A149: 4.4 | B149: 85.184 | C149: 26.702
A150: 4.5 | B150: 91.125 | C150: 27.209
A151: 4.6 | B151: 97.336 | C151: 27.716
A152: 4.7 | B152: 103.823 | C152: 28.223
A153: 4.8 | B153: 110.592 | C153: 28.73
A154: 4.9 | B154: =$B$1*A154^E$1 -> 117.649 | C154: 29.237
A155: 5 | B155: 125 | C155: 29.744
A156: 5.1 | B156: 132.651 | C156: 30.251
A157: 5.2 | B157: 140.608 | C157: 30.758
A158: 5.3 | B158: 148.877 | C158: 31.265
A159: 5.4 | B159: 157.464 | C159: 31.772
A160: 5.5 | B160: 166.375 | C160: 32.279
A161: 5.6 | B161: 175.616 | C161: 32.786
A162: 5.7 | B162: 185.193 | C162: 33.293
A163: 5.8 | B163: 195.112 | C163: 33.8
A164: 5.9 | B164: 205.379 | C164: 34.307
A165: 6 | B165: 216 | C165: 34.814
A166: 6.1 | B166: 226.981 | C166: 35.321
A167: 6.2 | B167: 238.328 | C167: 35.828
A168: 6.3 | B168: 250.047 | C168: 36.335
A169: 6.4 | B169: 262.144 | C169: 36.842
A170: 6.5 | B170: 274.625 | C170: 37.349
A171: 6.6 | B171: 287.496 | C171: 37.856
A172: 6.7 | B172: 300.763 | C172: 38.363
A173: 6.8 | B173: 314.432 | C173: 38.87
A174: 6.9 | B174: 328.509 | C174: 39.377
A175: 7 | B175: 343 | C175: 39.884
A176: 7.1 | B176: 357.911 | C176: 40.391
A177: 7.2 | B177: 373.248 | C177: 40.898
A178: 7.3 | B178: 389.017 | C178: 41.405
A179: 7.4 | B179: 405.224 | C179: 41.912
A180: 7.5 | B180: 421.875 | C180: 42.419
A181: 7.6 | B181: 438.976 | C181: 42.926
A182: 7.7 | B182: 456.533 | C182: 43.433
A183: 7.8 | B183: 474.552 | C183: 43.94
A184: 7.9 | B184: 493.039 | C184: 44.447
A185: 8 | B185: 512 | C185: 44.954
A186: 8.1 | B186: 531.441 | C186: 45.461
A187: 8.2 | B187: 551.368 | C187: 45.968
A188: 8.3 | B188: 571.787 | C188: 46.475
A189: 8.4 | B189: 592.704 | C189: 46.982
A190: 8.5 | B190: 614.125 | C190: 47.489
A191: 8.6 | B191: 636.056 | C191: 47.996
A192: 8.7 | B192: 658.503 | C192: 48.503
A193: 8.8 | B193: 681.472 | C193: 49.01
A194: 8.9 | B194: 704.969 | C194: 49.517
A195: 9 | B195: 729 | C195: 50.024
A196: 9.1 | B196: 753.571 | C196: 50.531
A197: 9.2 | B197: 778.688 | C197: =($E$1*$B$1*$K$4^($E$1-1))*(A197-$K$4)+($B$1*$K$4^$E$1) -> 51.038
A198: 9.3 | B198: 804.357 | C198: 51.545
A199: =A198-$H$1/100 -> 9.4 | B199: 830.584 | C199: 52.052
A200: 9.5 | B200: 857.375 | C200: 52.559
... 5 more rows

Sheet fdermon
A1: y= | B1: 1 | C1: x | D1: ^ | E1: 3 | G1: punto | H1: -10 | K1: ángulo | L1: pendiente
K2: =ATAN($E$1*$B$1*$K$4^($E$1-1))*180/PI() -> 55.77363819 | L2: =($E$1*$B$1*$K$4^($E$1-1)) -> 1.47
K3: PUNTO | L3: DERIVADA
K4: =H1+L6/10 -> 0.7 | L4: =L2 -> 1.47
A5: =$H$1 -> -10 | B5: =$B$1*A5^E$1 -> -1000 | C5: =($E$1*$B$1*$K$4^($E$1-1))*(A5-$K$4)+($B$1*$K$4^$E$1) -> -15.386 | D5: =$E$1*$B$1*(A5^($E$1-1)) -> 300
A6: =A5-$H$1/100 -> -9.9 | B6: =$B$1*A6^E$1 -> -970.299 | C6: -15.239 | D6: =$E$1*$B$1*(A6^($E$1-1)) -> 294.03 | L6: 107
A7: =A6-$H$1/100 -> -9.8 | B7: -941.192 | C7: -15.092 | D7: 288.12
A8: -9.7 | B8: -912.673 | C8: -14.945 | D8: 282.27
A9: -9.6 | B9: -884.736 | C9: -14.798 | D9: 276.48
A10: -9.5 | B10: -857.375 | C10: -14.651 | D10: 270.75
A11: -9.4 | B11: -830.584 | C11: -14.504 | D11: 265.08
A12: -9.3 | B12: -804.357 | C12: -14.357 | D12: 259.47
A13: -9.2 | B13: -778.688 | C13: -14.21 | D13: 253.92
A14: -9.1 | B14: -753.571 | C14: -14.063 | D14: 248.43
A15: -9 | B15: -729 | C15: -13.916 | D15: 243
A16: -8.9 | B16: -704.969 | C16: -13.769 | D16: 237.63
A17: -8.8 | B17: -681.472 | C17: -13.622 | D17: 232.32
A18: -8.7 | B18: -658.503 | C18: -13.475 | D18: 227.07
A19: -8.6 | B19: -636.056 | C19: -13.328 | D19: 221.88
A20: -8.5 | B20: -614.125 | C20: -13.181 | D20: 216.75
A21: -8.4 | B21: -592.704 | C21: -13.034 | D21: 211.68
A22: -8.3 | B22: -571.787 | C22: -12.887 | D22: 206.67
A23: -8.2 | B23: -551.368 | C23: -12.74 | D23: 201.72
A24: -8.1 | B24: -531.441 | C24: -12.593 | D24: 196.83
A25: -8 | B25: -512 | C25: -12.446 | D25: 192
A26: -7.9 | B26: -493.039 | C26: -12.299 | D26: 187.23
A27: -7.8 | B27: -474.552 | C27: -12.152 | D27: 182.52
A28: -7.7 | B28: -456.533 | C28: -12.005 | D28: 177.87
A29: -7.6 | B29: -438.976 | C29: -11.858 | D29: 173.28
A30: -7.5 | B30: -421.875 | C30: -11.711 | D30: 168.75
A31: -7.4 | B31: -405.224 | C31: -11.564 | D31: 164.28
A32: -7.3 | B32: -389.017 | C32: -11.417 | D32: 159.87
A33: -7.2 | B33: -373.248 | C33: -11.27 | D33: 155.52
A34: -7.1 | B34: -357.911 | C34: -11.123 | D34: 151.23
A35: -7 | B35: -343 | C35: -10.976 | D35: 147
A36: -6.9 | B36: -328.509 | C36: -10.829 | D36: 142.83
A37: -6.8 | B37: -314.432 | C37: -10.682 | D37: 138.72
A38: -6.7 | B38: -300.763 | C38: -10.535 | D38: 134.67
A39: -6.6 | B39: -287.496 | C39: -10.388 | D39: 130.68
A40: -6.5 | B40: -274.625 | C40: -10.241 | D40: 126.75
A41: -6.4 | B41: -262.144 | C41: -10.094 | D41: 122.88
A42: -6.3 | B42: -250.047 | C42: -9.947 | D42: 119.07
A43: -6.2 | B43: -238.328 | C43: -9.8 | D43: 115.32
A44: -6.1 | B44: -226.981 | C44: -9.653 | D44: 111.63
A45: -6 | B45: -216 | C45: -9.506 | D45: 108
A46: -5.9 | B46: -205.379 | C46: -9.359 | D46: 104.43
A47: -5.8 | B47: -195.112 | C47: -9.212 | D47: 100.92
A48: -5.7 | B48: -185.193 | C48: -9.065 | D48: 97.47
A49: -5.6 | B49: -175.616 | C49: -8.918 | D49: 94.08
A50: -5.5 | B50: -166.375 | C50: -8.771 | D50: 90.75
A51: -5.4 | B51: -157.464 | C51: -8.624 | D51: 87.48
A52: -5.3 | B52: -148.877 | C52: -8.477 | D52: 84.27
A53: -5.2 | B53: -140.608 | C53: -8.33 | D53: 81.12
A54: -5.1 | B54: -132.651 | C54: -8.183 | D54: 78.03
A55: -5 | B55: -125 | C55: -8.036 | D55: 75
A56: -4.9 | B56: -117.649 | C56: -7.889 | D56: 72.03
A57: -4.8 | B57: -110.592 | C57: -7.742 | D57: 69.12
A58: -4.7 | B58: -103.823 | C58: -7.595 | D58: 66.27
A59: -4.6 | B59: -97.336 | C59: -7.448 | D59: 63.48
A60: -4.5 | B60: -91.125 | C60: -7.301 | D60: 60.75
A61: -4.4 | B61: -85.184 | C61: -7.154 | D61: 58.08
A62: -4.3 | B62: -79.507 | C62: -7.007 | D62: 55.47
A63: -4.2 | B63: -74.088 | C63: -6.86 | D63: 52.92
A64: -4.1 | B64: -68.921 | C64: -6.713 | D64: 50.43
A65: -4 | B65: -64 | C65: -6.566 | D65: 48
A66: -3.9 | B66: -59.319 | C66: -6.419 | D66: 45.63
A67: -3.8 | B67: -54.872 | C67: -6.272 | D67: 43.32
A68: -3.7 | B68: -50.653 | C68: -6.125 | D68: 41.07
A69: -3.6 | B69: -46.656 | C69: =($E$1*$B$1*$K$4^($E$1-1))*(A69-$K$4)+($B$1*$K$4^$E$1) -> -5.978 | D69: 38.88
A70: -3.5 | B70: =$B$1*A70^E$1 -> -42.875 | C70: -5.831 | D70: =$E$1*$B$1*(A70^($E$1-1)) -> 36.75
A71: =A70-$H$1/100 -> -3.4 | B71: -39.304 | C71: -5.684 | D71: 34.68
A72: -3.3 | B72: -35.937 | C72: -5.537 | D72: 32.67
A73: -3.2 | B73: -32.768 | C73: -5.39 | D73: 30.72
A74: -3.1 | B74: -29.791 | C74: -5.243 | D74: 28.83
A75: -3 | B75: -27 | C75: -5.096 | D75: 27
A76: -2.9 | B76: -24.389 | C76: -4.949 | D76: 25.23
A77: -2.8 | B77: -21.952 | C77: -4.802 | D77: 23.52
A78: -2.7 | B78: -19.683 | C78: -4.655 | D78: 21.87
A79: -2.6 | B79: -17.576 | C79: -4.508 | D79: 20.28
A80: -2.5 | B80: -15.625 | C80: -4.361 | D80: 18.75
A81: -2.4 | B81: -13.824 | C81: -4.214 | D81: 17.28
A82: -2.3 | B82: -12.167 | C82: -4.067 | D82: 15.87
A83: -2.2 | B83: -10.648 | C83: -3.92 | D83: 14.52
A84: -2.1 | B84: -9.261 | C84: -3.773 | D84: 13.23
A85: -2 | B85: -8 | C85: -3.626 | D85: 12
A86: -1.9 | B86: -6.859 | C86: -3.479 | D86: 10.83
A87: -1.8 | B87: -5.832 | C87: -3.332 | D87: 9.72
A88: -1.7 | B88: -4.913 | C88: -3.185 | D88: 8.67
A89: -1.6 | B89: -4.096 | C89: -3.038 | D89: 7.68
A90: -1.5 | B90: -3.375 | C90: -2.891 | D90: 6.75
A91: -1.4 | B91: -2.744 | C91: -2.744 | D91: 5.88
A92: -1.3 | B92: -2.197 | C92: -2.597 | D92: 5.07
A93: -1.2 | B93: -1.728 | C93: -2.45 | D93: 4.32
A94: -1.1 | B94: -1.331 | C94: -2.303 | D94: 3.63
A95: -1 | B95: -1 | C95: -2.156 | D95: 3
A96: -0.9 | B96: -0.729 | C96: -2.009 | D96: 2.43
A97: -0.8 | B97: -0.512 | C97: -1.862 | D97: 1.92
A98: -0.7 | B98: -0.343 | C98: -1.715 | D98: 1.47
A99: -0.6 | B99: -0.216 | C99: -1.568 | D99: 1.08
A100: -0.5 | B100: -0.125 | C100: -1.421 | D100: 0.75
A101: -0.4 | B101: -0.064 | C101: -1.274 | D101: 0.48
A102: -0.3 | B102: -0.027 | C102: -1.127 | D102: 0.27
A103: -0.2 | B103: -0.008 | C103: -0.98 | D103: 0.12
A104: -0.1 | B104: -0.001 | C104: -0.833 | D104: 0.03
A105: -1.879052469e-14 | B105: -6.634630204e-42 | C105: -0.686 | D105: 1.059251455e-27
A106: 0.1 | B106: 0.001 | C106: -0.539 | D106: 0.03
A107: 0.2 | B107: 0.008 | C107: -0.392 | D107: 0.12
A108: 0.3 | B108: 0.027 | C108: -0.245 | D108: 0.27
A109: 0.4 | B109: 0.064 | C109: -0.098 | D109: 0.48
A110: 0.5 | B110: 0.125 | C110: 0.049 | D110: 0.75
A111: 0.6 | B111: 0.216 | C111: 0.196 | D111: 1.08
A112: 0.7 | B112: 0.343 | C112: 0.343 | D112: 1.47
A113: 0.8 | B113: 0.512 | C113: 0.49 | D113: 1.92
A114: 0.9 | B114: 0.729 | C114: 0.637 | D114: 2.43
A115: 1 | B115: 1 | C115: 0.784 | D115: 3
A116: 1.1 | B116: 1.331 | C116: 0.931 | D116: 3.63
A117: 1.2 | B117: 1.728 | C117: 1.078 | D117: 4.32
A118: 1.3 | B118: 2.197 | C118: 1.225 | D118: 5.07
A119: 1.4 | B119: 2.744 | C119: 1.372 | D119: 5.88
A120: 1.5 | B120: 3.375 | C120: 1.519 | D120: 6.75
A121: 1.6 | B121: 4.096 | C121: 1.666 | D121: 7.68
A122: 1.7 | B122: 4.913 | C122: 1.813 | D122: 8.67
A123: 1.8 | B123: 5.832 | C123: 1.96 | D123: 9.72
A124: 1.9 | B124: 6.859 | C124: 2.107 | D124: 10.83
A125: 2 | B125: 8 | C125: 2.254 | D125: 12
A126: 2.1 | B126: 9.261 | C126: 2.401 | D126: 13.23
A127: 2.2 | B127: 10.648 | C127: 2.548 | D127: 14.52
A128: 2.3 | B128: 12.167 | C128: 2.695 | D128: 15.87
A129: 2.4 | B129: 13.824 | C129: 2.842 | D129: 17.28
A130: 2.5 | B130: 15.625 | C130: 2.989 | D130: 18.75
A131: 2.6 | B131: 17.576 | C131: 3.136 | D131: 20.28
A132: 2.7 | B132: 19.683 | C132: 3.283 | D132: 21.87
A133: 2.8 | B133: 21.952 | C133: =($E$1*$B$1*$K$4^($E$1-1))*(A133-$K$4)+($B$1*$K$4^$E$1) -> 3.43 | D133: 23.52
A134: 2.9 | B134: =$B$1*A134^E$1 -> 24.389 | C134: 3.577 | D134: =$E$1*$B$1*(A134^($E$1-1)) -> 25.23
A135: =A134-$H$1/100 -> 3 | B135: 27 | C135: 3.724 | D135: 27
A136: 3.1 | B136: 29.791 | C136: 3.871 | D136: 28.83
A137: 3.2 | B137: 32.768 | C137: 4.018 | D137: 30.72
A138: 3.3 | B138: 35.937 | C138: 4.165 | D138: 32.67
A139: 3.4 | B139: 39.304 | C139: 4.312 | D139: 34.68
A140: 3.5 | B140: 42.875 | C140: 4.459 | D140: 36.75
A141: 3.6 | B141: 46.656 | C141: 4.606 | D141: 38.88
A142: 3.7 | B142: 50.653 | C142: 4.753 | D142: 41.07
A143: 3.8 | B143: 54.872 | C143: 4.9 | D143: 43.32
A144: 3.9 | B144: 59.319 | C144: 5.047 | D144: 45.63
A145: 4 | B145: 64 | C145: 5.194 | D145: 48
A146: 4.1 | B146: 68.921 | C146: 5.341 | D146: 50.43
A147: 4.2 | B147: 74.088 | C147: 5.488 | D147: 52.92
A148: 4.3 | B148: 79.507 | C148: 5.635 | D148: 55.47
A149: 4.4 | B149: 85.184 | C149: 5.782 | D149: 58.08
A150: 4.5 | B150: 91.125 | C150: 5.929 | D150: 60.75
A151: 4.6 | B151: 97.336 | C151: 6.076 | D151: 63.48
A152: 4.7 | B152: 103.823 | C152: 6.223 | D152: 66.27
A153: 4.8 | B153: 110.592 | C153: 6.37 | D153: 69.12
A154: 4.9 | B154: 117.649 | C154: 6.517 | D154: 72.03
A155: 5 | B155: 125 | C155: 6.664 | D155: 75
A156: 5.1 | B156: 132.651 | C156: 6.811 | D156: 78.03
A157: 5.2 | B157: 140.608 | C157: 6.958 | D157: 81.12
A158: 5.3 | B158: 148.877 | C158: 7.105 | D158: 84.27
A159: 5.4 | B159: 157.464 | C159: 7.252 | D159: 87.48
A160: 5.5 | B160: 166.375 | C160: 7.399 | D160: 90.75
A161: 5.6 | B161: 175.616 | C161: 7.546 | D161: 94.08
A162: 5.7 | B162: 185.193 | C162: 7.693 | D162: 97.47
A163: 5.8 | B163: 195.112 | C163: 7.84 | D163: 100.92
A164: 5.9 | B164: 205.379 | C164: 7.987 | D164: 104.43
A165: 6 | B165: 216 | C165: 8.134 | D165: 108
A166: 6.1 | B166: 226.981 | C166: 8.281 | D166: 111.63
A167: 6.2 | B167: 238.328 | C167: 8.428 | D167: 115.32
A168: 6.3 | B168: 250.047 | C168: 8.575 | D168: 119.07
A169: 6.4 | B169: 262.144 | C169: 8.722 | D169: 122.88
A170: 6.5 | B170: 274.625 | C170: 8.869 | D170: 126.75
A171: 6.6 | B171: 287.496 | C171: 9.016 | D171: 130.68
A172: 6.7 | B172: 300.763 | C172: 9.163 | D172: 134.67
A173: 6.8 | B173: 314.432 | C173: 9.31 | D173: 138.72
A174: 6.9 | B174: 328.509 | C174: 9.457 | D174: 142.83
A175: 7 | B175: 343 | C175: 9.604 | D175: 147
A176: 7.1 | B176: 357.911 | C176: 9.751 | D176: 151.23
A177: 7.2 | B177: 373.248 | C177: 9.898 | D177: 155.52
A178: 7.3 | B178: 389.017 | C178: 10.045 | D178: 159.87
A179: 7.4 | B179: 405.224 | C179: 10.192 | D179: 164.28
A180: 7.5 | B180: 421.875 | C180: 10.339 | D180: 168.75
A181: 7.6 | B181: 438.976 | C181: 10.486 | D181: 173.28
A182: 7.7 | B182: 456.533 | C182: 10.633 | D182: 177.87
A183: 7.8 | B183: 474.552 | C183: 10.78 | D183: 182.52
A184: 7.9 | B184: 493.039 | C184: 10.927 | D184: 187.23
A185: 8 | B185: 512 | C185: 11.074 | D185: 192
A186: 8.1 | B186: 531.441 | C186: 11.221 | D186: 196.83
A187: 8.2 | B187: 551.368 | C187: 11.368 | D187: 201.72
A188: 8.3 | B188: 571.787 | C188: 11.515 | D188: 206.67
A189: 8.4 | B189: 592.704 | C189: 11.662 | D189: 211.68
A190: 8.5 | B190: 614.125 | C190: 11.809 | D190: 216.75
A191: 8.6 | B191: 636.056 | C191: 11.956 | D191: 221.88
A192: 8.7 | B192: 658.503 | C192: 12.103 | D192: 227.07
A193: 8.8 | B193: 681.472 | C193: 12.25 | D193: 232.32
A194: 8.9 | B194: 704.969 | C194: 12.397 | D194: 237.63
A195: 9 | B195: 729 | C195: 12.544 | D195: 243
A196: 9.1 | B196: 753.571 | C196: 12.691 | D196: 248.43
A197: 9.2 | B197: 778.688 | C197: =($E$1*$B$1*$K$4^($E$1-1))*(A197-$K$4)+($B$1*$K$4^$E$1) -> 12.838 | D197: 253.92
A198: 9.3 | B198: =$B$1*A198^E$1 -> 804.357 | C198: 12.985 | D198: =$E$1*$B$1*(A198^($E$1-1)) -> 259.47
A199: =A198-$H$1/100 -> 9.4 | B199: 830.584 | C199: 13.132 | D199: 265.08
A200: 9.5 | B200: 857.375 | C200: 13.279 | D200: 270.75
... 5 more rows
